fUSD/lending_fUSD_20240409
["ID","MTS","AMOUNT","RATE_DAILY","PERIOD"]
[321985379,1712673069642,-500.0,0.00020929,2]
[321985380,1712673069655,-500.0,0.00020929,2]
[321985381,1712673069665,-500.0,0.00020929,2]
[321985382,1712673069677,-500.0,0.00020929,2]
[321985383,1712673069687,-1286.39,0.00020929,2]
[321985384,1712673069707,-767.6,0.00020929,2]
[321985385,1712673069717,-500.0,0.00020929,2]
[321985386,1712673069727,-1574.61,0.00020929,2]
[321985387,1712673069737,-500.0,0.00020929,2]
[321985388,1712673069747,-770.45,0.00020929,2]
[321985389,1712673069756,-724.04,0.00020929,2]
[321985390,1712673069766,-500.0,0.00020929,2]
[321985391,1712673069777,-500.0,0.00020929,2]
[321985392,1712673069787,-500.0,0.00020929,2]
[321985393,1712673069796,-551.2,0.00020929,2]
[321985394,1712673069807,-500.0,0.00020929,2]
[321985395,1712673069817,-500.0,0.00020929,2]
[321985396,1712673069827,-500.0,0.00020929,2]
[321985397,1712673069837,-500.0,0.00020929,2]
[321985398,1712673069846,-1419.81,0.00020929,2]
[321985399,1712673069856,-500.0,0.00020929,2]
[321985400,1712673069866,-500.0,0.00020929,2]
[321985401,1712673069876,-1138.13,0.00020929,2]
[321985402,1712673069886,-500.0,0.00020929,2]
[321985403,1712673069895,-774.3,0.00020929,2]
[321985404,1712673069905,-1106.43,0.00020929,2]
[321985405,1712673069914,-825.7,0.00020929,2]
[321985406,1712673069924,-624.17,0.00020929,2]
[321985407,1712673069933,-500.0,0.00020929,2]
[321985408,1712673069944,-1062.05,0.00020929,2]
[321985409,1712673069959,-154.56739362,0.00020929,2]
[321985410,1712673069969,-51.00158246,0.00020929,2]
[321985411,1712673070469,-500.0,0.00019546,2]
[321985412,1712673070480,-1117.00841754,0.00020929,2]
[321985413,1712673070490,-1770.47,0.00020929,2]
[321985414,1712673070500,-500.0,0.00020929,2]
[321985415,1712673070510,-500.0,0.00020929,2]
[321985416,1712673070520,-607.04,0.00020929,2]
[321985417,1712673070530,-500.0,0.00020929,2]
[321985418,1712673070539,-843.1,0.00020929,2]
[321985419,1712673070548,-881.46,0.00020929,2]
[321985420,1712673070558,-500.0,0.00020929,2]
[321985421,1712673070568,-500.0,0.00020929,2]
[321985422,1712673070580,-990.48,0.00020929,2]
[321985423,1712673070590,-1738.96,0.00020929,2]
[321985424,1712673070599,-332.01237171,0.00020929,2]
[321985425,1712673070609,-1167.93,0.00020929,2]
[321985426,1712673070621,-719.71,0.00020929,2]
[321985427,1712673070631,-500.0,0.00020929,2]
[321985428,1712673070642,-500.0,0.00020929,2]
[321985429,1712673070652,-1069.62,0.00020929,2]
[321985430,1712673070662,-500.0,0.00020929,2]
[321985431,1712673070672,-761.98,0.00020929,2]
[321985432,1712673070682,-500.0,0.00020929,2]
[321985433,1712673070691,-731.51,0.00020929,2]
[321985434,1712673070705,-500.0,0.00020929,2]
[321985435,1712673070715,-981.74,0.00020929,2]
[321985436,1712673070726,-832.66,0.00020929,2]
[321985437,1712673070735,-1002.22,0.00020929,2]
[321985438,1712673070744,-503.12,0.00020929,2]
[321985439,1712673070754,-869.23,0.00020929,2]
[321985440,1712673070763,-934.64,0.00020929,2]
[321985441,1712673070772,-500.0,0.00020929,2]
[321985442,1712673070783,-626.82,0.00020929,2]
[321985443,1712673070792,-500.0,0.00020929,2]
[321985444,1712673070801,-500.0,0.00020929,2]
[321985445,1712673070811,-1102.78,0.00020929,2]
[321985446,1712673070820,-1694.35,0.00020929,2]
[321985447,1712673070829,-715.55,0.00020929,2]
[321985448,1712673070839,-1183.36,0.00020929,2]
[321985449,1712673070849,-500.0,0.00020929,2]
[321985450,1712673070858,-613.37,0.00020929,2]
[321985451,1712673070867,-1495.38,0.00020929,2]
[321985452,1712673070876,-500.0,0.00020929,2]
[321985453,1712673070886,-1256.72,0.00020929,2]
[321985454,1712673070896,-500.0,0.00020929,2]
[321985455,1712673070905,-892.81,0.00020929,2]
[321985456,1712673070914,-500.0,0.00020929,2]
[321985457,1712673070923,-659.39,0.00020929,2]
[321985458,1712673070933,-622.18,0.00020929,2]
[321985459,1712673070942,-500.0,0.00020929,2]
[321985460,1712673070960,-500.0,0.00020929,2]
[321985461,1712673070969,-500.0,0.0002093,2]
[321985462,1712673070979,-500.0,0.0002093,2]
[321985463,1712673070989,-500.0,0.0002093,2]
[321985464,1712673070998,-500.0,0.0002093,2]
[321985465,1712673071010,-627.03,0.0002093,2]
[321985466,1712673071021,-500.0,0.0002093,2]
[321985467,1712673071030,-500.0,0.0002093,2]
[321985468,1712673071040,-638.88,0.0002093,2]
[321985469,1712673071050,-932.16,0.0002093,2]
[321985470,1712673071059,-500.0,0.0002093,2]
[321985471,1712673071070,-314.84616833,0.0002093,2]
[321985472,1712673071080,-374.75889729,0.00020965,2]
[321985473,1712673071093,-183.64282096,0.00020965,2]
[321985474,1712673071102,-339.58091514,0.00020965,2]
[321985475,1712673071112,-3055.35126391,0.00020994,5]
[321985476,1712673071514,-357.99,0.00019272,2]
[321985477,1712673071526,-142.01,0.00019272,2]
[321985478,1712673071536,-176.2430643,0.00019374,2]
[321985479,1712673071912,-2397.80406709,0.00019374,2]
[321985480,1712673071931,-3976.17941637,0.00019374,2]
[321985481,1712673072493,-428.58003036,0.00019272,2]
[321985482,1712673072514,-71.41996964,0.00019272,2]
[321985483,1712673072524,-1863.76137601,0.00019374,2]
[321985484,1712673072736,-500.0,0.00019373,2]
[321985485,1712673072746,-10887.78207623,0.00019374,2]
[321985486,1712673072756,-500.0,0.00019546,2]
[321985487,1712673072766,-500.0,0.00019546,2]
[321985488,1712673072775,-500.0,0.00019647,2]
[321985489,1712673072785,-8299.24235398,0.00019648,2]
[321985490,1712673072797,-3077.0228602,0.00019648,2]
[321985491,1712673072809,-7925.50478582,0.00019648,2]
[321985492,1712673072819,-500.0,0.0001982,2]
[321985493,1712673072830,-500.0,0.0001982,2]
[321985494,1712673072841,-500.0,0.0001982,2]
[321985495,1712673072850,-8033.29646676,0.00019922,2]
[321985496,1712673072862,-6841.61874499,0.00019922,2]
[321985497,1712673072893,-4300.01284758,0.00019922,2]
[321985498,1712673072905,-126.84194067,0.00019922,2]
[321985499,1712673072915,-500.0,0.00020094,2]
[321985500,1712673072925,-500.0,0.00020094,2]
[321985501,1712673072934,-9883.92394297,0.00020196,2]
[321985502,1712673073578,-3032.69,0.00019272,2]
[321985503,1712673073588,-500.0,0.00019921,2]
[321985504,1712673073599,-500.0,0.00020094,2]
[321985505,1712673073609,-1130.70187944,0.00020095,2]
[321985506,1712673073623,-500.0,0.00020195,2]
[321985507,1712673073637,-9417.84605703,0.00020196,2]
[321985508,1712673073647,-500.0,0.00020368,2]
[321985509,1712673073658,-500.0,0.00020368,2]
[321985510,1712673073668,-351.76268027,0.00020368,2]
[321985511,1712673073680,-500.0,0.00020469,2]
[321985512,1712673073690,-17298.86996299,0.0002047,2]
[321985513,1712673073726,-331.70627492,0.0002047,2]
[321985514,1712673073771,-453.439,0.00019272,2]
[321985515,1712673073781,-1671.19376209,0.0002047,2]
[321985516,1712673073791,-834.89532939,0.00020604,2]
[321985517,1712673073800,-500.0,0.00020642,2]
[321985518,1712673073810,-500.0,0.00020642,2]
[321985519,1712673073821,-1782.44,0.00020643,2]
[321985520,1712673073831,-500.0,0.00020743,2]
[321985521,1712673073840,-19301.77,0.00020744,2]
[321985522,1712673073850,-500.0,0.00020916,2]
[321985523,1712673073859,-500.0,0.00020916,2]
[321985524,1712673073869,-1782.44,0.00020917,2]
[321985525,1712673073879,-4884.25149103,0.00020994,5]
[321985526,1712673073891,-614.45373062,0.00020994,5]
[321985527,1712673073921,-540.58271583,0.00020994,5]
[321985528,1712673073956,-353.21682557,0.00019546,2]
[321985529,1712673073968,-2679.47317443,0.00019546,2]
[321985530,1712673073978,-12303.59489441,0.00020994,5]
[321985531,1712673073987,-2881.93193116,0.00020995,2]
[321985532,1712673073998,-2515.90156171,0.00020995,2]
[321985533,1712673074009,-503.01700002,0.00020995,2]
[321985534,1712673074020,-1661.89460308,0.00020995,2]
[321985535,1712673074043,-956.59969636,0.00020995,2]
[321985536,1712673094672,25000.0,0.000327,30]
[321985537,1712673105270,-962.0,0.00025,8]
[321985538,1712673105293,-481.0,0.00025,8]
[321985539,1712673105315,-962.0,0.00025,8]
[321985540,1712673130370,-239.968963,0.00022113,7]
[321985541,1712673130392,-446.427789,0.00022113,7]
[321985542,1712673130415,-239.968963,0.00022113,7]
[321985543,1712673130438,-446.427789,0.00022113,7]
[321985544,1712673130459,-2552.577156,0.00022113,7]
[321985545,1712673130486,-2552.577156,0.00022113,7]
[321985546,1712673130510,-180.591757,0.00022113,7]
[321985547,1712673130551,-239.968963,0.00022387,7]
[321985548,1712673130573,-446.427789,0.00022387,7]
[321985549,1712673130596,-239.968958,0.00022387,7]
[321985550,1712673130616,-446.427788,0.00022387,7]
[321985551,1712673130640,-2552.577156,0.00022387,7]
[321985552,1712673130660,-2552.577162,0.00022387,7]
[321985553,1712673130812,-1220.0,0.00024463,7]
[321985554,1712673130857,-1000.0,0.00024657,7]
[321985555,1712673130878,-1000.0,0.00024657,7]
[321985556,1712673130899,-1000.0,0.00024657,7]
[321985557,1712673130919,-216.12475723,0.00024657,7]
[321985558,1712673130939,-30022.38785377,0.00024671,7]
[321985559,1712673218428,-151.0,0.00021918,7]
[321985560,1712673218473,-331.429695,0.00022286,7]
[321985561,1712673218496,-331.429695,0.00022286,7]
[321985562,1712673218518,-298.022786,0.00022286,7]
[321985563,1712673218542,-151.0,0.00022286,7]
[321985564,1712673218566,-613.59491,0.00022286,7]
[321985565,1712673218590,-174.427321,0.00022286,7]
[321985566,1712673218614,-613.59491,0.00022286,7]
[321985567,1712673218639,-151.0,0.00022286,7]
[321985568,1712673218669,-151.0,0.00022287,7]
[321985569,1712673218731,-331.429695,0.00022661,7]
[321985570,1712673218753,-331.429695,0.00022661,7]
[321985571,1712673218775,-151.0,0.00022661,7]
[321985572,1712673218802,-613.59491,0.00022661,7]
[321985573,1712673218823,-613.59491,0.00022661,7]
[321985574,1712673218845,-151.0,0.00022661,7]
[321985575,1712673218868,-151.0,0.00022661,7]
[321985576,1712673218911,-331.429695,0.00022936,7]
[321985577,1712673218934,-331.4297,0.00022936,7]
[321985578,1712673218956,-151.0,0.00022936,7]
[321985579,1712673218978,-613.59491,0.00022936,7]
[321985580,1712673219001,-613.594904,0.00022936,7]
[321985581,1712673219022,-180.924044,0.00022936,7]
[321985582,1712673224718,151.0,0.00021918,7]
[321985583,1712673225140,151.0,0.00022287,7]
[321985584,1712673225445,151.0,0.00022661,7]
[321985585,1712673227221,265.33685,0.00021918,7]
[321985586,1712673227597,265.33685,0.00022287,7]
[321985587,1712673228669,265.33685,0.00022661,7]
[321985588,1712673231816,265.33685,0.00021918,7]
[321985589,1712673231861,445.962544,0.00021918,7]
[321985590,1712673232123,445.962544,0.00022287,7]
[321985591,1712673232152,265.33685,0.00022287,7]
[321985592,1712673232416,265.336844,0.00022661,7]
[321985593,1712673232467,445.962544,0.00022661,7]
[321985594,1712673235191,445.962544,0.00021918,7]
[321985595,1712673235749,445.962544,0.00022287,7]
[321985596,1712673236037,445.962535,0.00022661,7]
[321985597,1712673243387,307.369968,0.00021918,7]
[321985598,1712673243846,307.369968,0.00022287,7]
[321985599,1712673244337,307.369968,0.00022661,7]
[321985600,1712673246571,307.369968,0.00021918,7]
[321985601,1712673246843,307.369968,0.00022287,7]
[321985602,1712673247759,307.369965,0.00022661,7]
[321985603,1712673250015,162.157793,0.00021918,7]
[321985604,1712673250408,162.157793,0.00022287,7]
[321985605,1712673253643,162.157793,0.00022661,7]
[321985606,1712673256074,162.157793,0.00021918,7]
[321985607,1712673256457,162.157793,0.00022287,7]
[321985608,1712673256825,162.157801,0.00022661,7]
[321985609,1712673257664,238.707756,0.00021918,7]
[321985610,1712673286025,2042.061725,0.00021918,7]
[321985611,1712673292602,2042.061721,0.00021918,7]
[321985615,1712673350303,151.0,0.00021918,7]
[321985616,1712673353399,201.693083,0.00021918,7]
[321985617,1712673357018,201.693074,0.00021918,7]
[321985619,1712673379641,155.62226538,0.00017343,2]
[321985620,1712673402414,191.97517,0.00021918,7]
[321985621,1712673407110,191.975178,0.00021918,7]
[321985622,1712673441799,658.11,0.00016192,2]
[321985623,1712673446212,168.68,0.00027102,120]
[321985624,1712673492794,25000.0,0.00032653,30]
[321985626,1712673548052,528.56,0.00017997,2]
[321985627,1712673548742,1000.0,0.00018,2]
[321985629,1712673561101,1608.58529757,0.00018001,2]
[321985630,1712673597481,486.93,0.00018001,2]
[321985631,1712673605848,250.0,0.00017619,2]
[321985632,1712673608556,167.92,0.00017637,2]
[321985633,1712673635583,10928.55387545,0.00032639,30]
[321985634,1712673675625,500.0,0.00017619,2]
[321985635,1712673676452,3360.79,0.00017619,2]
[321985636,1712673717995,175.74,0.00014071,2]
[321985637,1712673745794,25000.0,0.00032639,30]
[321985638,1712673760685,855.59837989,0.00016738,2]
[321985639,1712673765356,5534.18994366,0.00018,2]
[321985640,1712673765545,1023.6155917,0.00017619,2]
[321985641,1712673773224,1034.32102367,0.00017619,2]
[321985642,1712673787042,550.28,0.00017571,2]
[321985643,1712673819842,536.82144219,0.00018,2]
[321985644,1712673822005,16586.8572,0.00017902,2]
[321985646,1712673838247,1969.52611921,0.00018,2]
[321985647,1712673841378,550.85529154,0.00018,2]
[321985648,1712673846661,205.96366372,0.00018,2]
[321985649,1712673849327,23900.0,0.00017628,2]
[321985650,1712673851780,264.98679253,0.00017341,2]
[321985651,1712673851845,4145.76344365,0.00018,2]
[321985652,1712673852742,200.0,0.00017602,2]
[321985653,1712673852995,289.53,0.00017734,2]
[321985654,1712673853368,289.53,0.00017783,2]
[321985655,1712673853613,289.53,0.00017831,2]
[321985656,1712673853842,289.53,0.0001788,2]
[321985657,1712673854078,289.53,0.00017929,2]
[321985658,1712673854327,289.53,0.00017977,2]
[321985659,1712673860809,500.0,0.00017352,2]
[321985660,1712673863457,628.79,0.00017352,2]
[321985661,1712673879952,2751.0,0.00017352,2]
[321985662,1712673916391,150.0,0.00018,2]
[321985663,1712673919595,25000.0,0.00032642,30]
[321985664,1712673946812,303.67451412,0.00018,2]
[321985665,1712673951324,536.82144219,0.00018,2]
[321985666,1712673964509,150.0,0.00017178,2]
[321985667,1712673973110,175.72,0.0001773,2]
[321985668,1712673978798,181.45176696,0.00025,17]
[321985669,1712674016954,-2768.5015041,0.00018001,2]
[321985670,1712674020123,719.9,0.00015151,2]
[321985671,1712674020564,719.9,0.00017415,2]
[321985672,1712674025204,325.84537089,0.00017982,2]
[321985681,1712674049921,445.17,0.00017069,2]
[321985690,1712674079738,3478.1474,0.00017901,2]
[321985691,1712674085259,250.0,0.00017072,2]
[321985693,1712674125513,500.0,0.00017065,2]
[321985694,1712674127133,718.25,0.0001708,2]
[321985695,1712674130945,160.47,0.0001708,2]
[321985696,1712674131465,200.0,0.0001708,2]
[321985697,1712674140619,296.00785364,0.00018,2]
[321985747,1712674148722,500.0,0.00017074,2]
[321985748,1712674186757,1125.97219925,0.00018,2]
[321985749,1712674190730,325.84537089,0.00017982,2]
[321985750,1712674191566,240.81,0.00017074,2]
[321985751,1712674199308,3808.59,0.00017074,2]
[321985753,1712674200860,644.54423816,0.00018,2]
[321985777,1712674233020,-1949.86205491,0.00018001,2]
[321985778,1712674233031,-528.56,0.00018002,2]
[321985779,1712674233041,-528.56,0.00018006,2]
[321985780,1712674233051,-434.89258509,0.00018011,2]
[321985781,1712674233078,-93.66741491,0.00018011,2]
[321985782,1712674233088,-528.56,0.00018016,2]
[321985783,1712674233097,-528.56,0.00018021,2]
[321985784,1712674233107,-150.0,0.00018024,2]
[321985785,1712674233116,-96.60858509,0.00018025,2]
[321985786,1712674233129,-431.95141491,0.00018025,2]
[321985787,1712674233139,-499.99,0.00018025,2]
[321985788,1712674233149,-385.62,0.00018025,2]
[321985789,1712674233158,-2210.87250223,0.00018025,2]
[321985790,1712674233188,-6467.65749777,0.00018025,2]
[321985791,1712674233198,-150.99,0.00018025,2]
[321985792,1712674233208,-9999.99,0.00018025,2]
[321985793,1712674233222,-3620.85,0.00018025,2]
[321985794,1712674233233,-289.53,0.00018026,2]
[321985795,1712674233243,-554.83,0.00018028,2]
[321985796,1712674233252,-528.56,0.0001803,2]
[321985797,1712674233262,-150.99,0.0001803,2]
[321985798,1712674233272,-528.56,0.00018035,2]
[321985799,1712674233281,-528.56,0.00018039,2]
[321985800,1712674233291,-528.56,0.00018044,2]
[321985801,1712674233301,-528.56,0.00018049,2]
[321985802,1712674233311,-528.56,0.00018054,2]
[321985803,1712674233321,-305.48950221,0.00018058,2]
[321985804,1712674233333,-223.07049779,0.00018058,2]
[321985805,1712674233342,-528.56,0.00018063,2]
[321985806,1712674233352,-168.68,0.00018068,2]
[321985807,1712674233361,-528.56,0.00018068,2]
[321985808,1712674233371,-220.23863973,0.00018071,2]
[321985809,1712674233382,-528.56,0.00018073,2]
[321985810,1712674233391,-289.53,0.00018074,2]
[321985811,1712674233401,-4503.04627123,0.00018076,2]
[321985812,1712674233410,-528.56,0.00018077,2]
[321985813,1712674233420,-236.21588443,0.00018079,2]
[321985814,1712674233430,-207.31426992,0.00018079,2]
[321985815,1712674233439,-166.98481228,0.00018079,2]
[321985816,1712674233449,-156.89734001,0.00018079,2]
[321985817,1712674233459,-261.69742537,0.00018079,2]
[321985818,1712674233472,-170.78473783,0.00018079,2]
[321985819,1712674233481,-889.59178794,0.00018079,2]
[321985820,1712674233491,-564.26854879,0.00018079,2]
[321985821,1712674233501,-181.16211618,0.0001808,2]
[321985822,1712674233511,-58572.37446849,0.00018081,2]
[321985823,1712674233523,-14257.07803654,0.00018081,2]
[321985824,1712674233554,-3455.45,0.00018081,2]
[321985826,1712674233566,-3325.01349996,0.00018081,2]
[321985829,1712674233586,-176280.000001,0.00018081,2]
[321985831,1712674233598,-54550.00001,0.00018081,2]
[321985833,1712674233610,-3450.0,0.00018081,2]
[321985837,1712674233641,-6573.45320501,0.00018081,2]
[321985840,1712674233653,-275469.56399,0.00018081,2]
[321985843,1712674233675,-1350.57930346,0.00018081,2]
[321985845,1712674233687,-404.7938954,0.00018081,2]
[321985848,1712674233711,-20826.648,0.00018081,2]
[321985849,1712674233730,-363.26244999,0.00018081,2]
[321985850,1712674233742,-6975.05,0.00018081,2]
[321985948,1712674238775,-2544.17739078,0.00018081,2]
[321985951,1712674238787,-12046.25094253,0.00018081,2]
[321985964,1712674238848,-4962.155302,0.00018081,2]
[321985967,1712674238861,-11506.02996955,0.00018081,2]
[321985970,1712674238872,-18466.46492636,0.00018081,2]
[321985973,1712674238884,-2354.44349327,0.00018081,2]
[321985976,1712674238896,-3539.5,0.00018081,2]
[321985979,1712674238908,-2433.724515,0.00018081,2]
[321985982,1712674238919,-210.61552358,0.00018081,2]
[321985985,1712674238929,-1569.38447642,0.00018082,2]
[321986006,1712674242823,-13803.4,0.00018082,2]
[321986007,1712674242835,-617.3561318,0.00018082,2]
[321986013,1712674242901,-18126.95991188,0.00018082,2]
[321986015,1712674242913,-1232.7,0.00018082,2]
[321986017,1712674242930,-1351.692513,0.00018082,2]
[321986018,1712674242942,-852.79599935,0.00018082,2]
[321986019,1712674242953,-35216.86696755,0.00018082,2]
[321986020,1712674242965,-528.56,0.00018082,2]
[321986021,1712674242978,-528.56,0.00018087,2]
[321986022,1712674242988,-451.03177265,0.00018112,2]
[321986023,1712674242997,-289.53,0.00018123,2]
[321986024,1712674243006,-289.53,0.00018172,2]
[321986025,1712674243016,-289.53,0.0001822,2]
[321986026,1712674243025,-289.53,0.00018269,2]
[321986027,1712674243035,-1923.56030465,0.00018307,2]
[321986028,1712674243045,-289.53,0.00018318,2]
[321986029,1712674243054,-289.53,0.00018366,2]
[321986032,1712674243064,-289.53,0.00018415,2]
[321986035,1712674243073,-289.53,0.00018464,2]
[321986038,1712674243082,-164.96823777,0.00018504,2]
[321986041,1712674243092,-289.53,0.00018512,2]
[321986042,1712674243101,-330.88438084,0.00018559,2]
[321986044,1712674243111,-289.53,0.00018561,2]
[321986046,1712674243120,-2545.28,0.00018604,2]
[321986047,1712674243131,-289.53,0.00018609,2]
[321986048,1712674243140,-164.96823777,0.00018638,2]
[321986049,1712674243149,-905.53,0.00018638,2]
[321986050,1712674243158,-289.53,0.00018658,2]
[321986052,1712674243167,-161.40607089,0.0001874,2]
[321986054,1712674243176,-164.96823777,0.00018773,2]
[321986056,1712674243185,-191.23010852,0.00018809,2]
[321986058,1712674243195,-800.0,0.00018822,2]
[321986060,1712674243205,-164.96823777,0.00018907,2]
[321986062,1712674243214,-10208.97,0.00018931,2]
[321986064,1712674243227,-800.0,0.00018932,2]
[321986066,1712674243236,-13555.18965616,0.00019,2]
[321986068,1712674243245,-1250.0,0.00019,3]
[321986070,1712674243255,-42744.42176779,0.00019021,2]
[321986072,1712674243264,-164.96823777,0.00019042,2]
[321986074,1712674243273,-513.78160399,0.00019095,2]
[321986076,1712674243282,-166.83,0.00019146,2]
[321986077,1712674243291,-325.84537089,0.00019151,2]
[321986080,1712674243300,-191.23010852,0.00019158,2]
[321986082,1712674243309,-6605.5747398,0.00019172,2]
[321986084,1712674243318,-164.96823777,0.00019176,2]
[321986086,1712674243327,-1182.45,0.00019178,2]
[321986088,1712674243337,-1818.84,0.00019178,2]
[321986089,1712674243346,-2025.12,0.00019178,2]
[321986091,1712674243355,-595.89,0.00019178,2]
[321986093,1712674243365,-1712.57,0.00019178,2]
[321986095,1712674243374,-2288.52,0.00019178,2]
[321986097,1712674243383,-1460.5,0.00019178,2]
[321986099,1712674243392,-500.0,0.00019178,2]
[321986101,1712674243401,-500.0,0.00019178,2]
[321986103,1712674243410,-500.0,0.00019178,2]
[321986105,1712674243419,-500.0,0.00019178,2]
[321986107,1712674243428,-500.0,0.00019178,2]
[321986109,1712674243437,-500.0,0.00019178,2]
[321986111,1712674243446,-500.0,0.00019178,2]
[321986113,1712674243455,-7.18772113,0.00019178,2]
[321986143,1712674243743,-492.81227887,0.00019178,2]
[321986145,1712674243753,-500.0,0.00019178,2]
[321986147,1712674243763,-500.0,0.00019178,2]
[321986149,1712674243773,-230.54692663,0.00019178,2]
[321986151,1712674243782,-1415.21,0.00019178,2]
[321986153,1712674243792,-4505.73,0.00019178,2]
[321986156,1712674243802,-2286.59,0.00019178,2]
[321986158,1712674243812,-11951.03,0.00019178,2]
[321986160,1712674243822,-1103.96,0.00019178,2]
[321986162,1712674243831,-2504.4,0.00019178,2]
[321986164,1712674243840,-3610.9,0.00019178,2]
[321986166,1712674243850,-1259.35,0.00019178,2]
[321986167,1712674243859,-3315.94,0.00019178,2]
[321986169,1712674243868,-1616.26,0.00019178,2]
[321986172,1712674243878,-1780.88,0.00019178,2]
[321986174,1712674243889,-196.58505653,0.00019178,2]
[321986176,1712674243898,-1393.67,0.00019178,2]
[321986178,1712674243907,-500.0,0.00019178,2]
[321986179,1712674243916,-2797.41,0.00019178,2]
[321986182,1712674243926,-500.0,0.00019178,2]
[321986183,1712674243937,-1456.23,0.00019178,2]
[321986186,1712674243946,-2280.49,0.00019178,2]
[321986188,1712674243957,-158.19,0.0001918,2]
[321986189,1712674243966,-445.17,0.00019203,2]
[321986191,1712674243984,-425.5582199,0.00019258,2]
[321986193,1712674243994,-1065.0,0.0001926,2]
[321986195,1712674244003,-147880.0,0.0001926,2]
[321986197,1712674244012,-979.32,0.00019267,2]
[321986199,1712674244021,-1296.33667789,0.00019268,2]
[321986201,1712674244031,-1367.17078383,0.00019268,2]
[321986203,1712674244041,-271.66882113,0.00019268,2]
[321986205,1712674244051,-227.51184237,0.00019268,2]
[321986207,1712674244060,-248.48570102,0.00019268,2]
[321986209,1712674244069,-333.68785673,0.00019268,2]
[321986211,1712674244079,-686.58612952,0.00019268,2]
[321986213,1712674244088,-466.75428423,0.00019268,2]
[321986215,1712674244097,-303.5642936,0.00019268,2]
[321986217,1712674244106,-166.57598756,0.00019269,2]
[321986219,1712674244115,-255.83888732,0.00019269,2]
[321986221,1712674244125,-500.0,0.00019269,2]
[321986223,1712674244134,-500.0,0.00019269,2]
[321986225,1712674244143,-500.0,0.00019269,2]
[321986227,1712674244152,-500.0,0.00019269,2]
[321986229,1712674244162,-500.0,0.00019269,2]
[321986232,1712674244172,-500.0,0.00019269,2]
[321986234,1712674244183,-500.0,0.00019269,2]
[321986236,1712674244193,-874.36,0.00019269,2]
[321986238,1712674244203,-691.8,0.00019269,2]
[321986239,1712674244212,-500.0,0.00019269,2]
[321986241,1712674244225,-500.0,0.00019269,2]
[321986244,1712674244235,-500.0,0.00019269,2]
[321986246,1712674244244,-500.0,0.00019269,2]
[321986248,1712674244253,-500.0,0.00019269,2]
[321986250,1712674244263,-500.0,0.00019269,2]
[321986252,1712674244272,-6036.2,0.00019269,2]
[321986254,1712674244281,-500.0,0.00019269,2]
[321986256,1712674244290,-3378.52,0.00019269,2]
[321986257,1712674244299,-500.0,0.00019269,2]
[321986259,1712674244309,-3763.34,0.00019269,2]
[321986261,1712674244318,-500.0,0.00019269,2]
[321986263,1712674244328,-937.12,0.00019269,2]
[321986265,1712674244338,-500.0,0.00019269,2]
[321986266,1712674244347,-1090.12,0.00019269,2]
[321986267,1712674244357,-500.0,0.00019269,2]
[321986268,1712674244366,-500.0,0.00019269,2]
[321986269,1712674244375,-500.0,0.00019269,2]
[321986270,1712674244385,-1263.08,0.00019269,2]
[321986271,1712674244394,-500.0,0.00019269,2]
[321986272,1712674244403,-500.0,0.00019269,2]
[321986273,1712674244412,-1861.21,0.00019269,2]